fUST/lending_fUST_20260219
["ID","MTS","AMOUNT","RATE_DAILY","PERIOD"]
[405991497,1771509032348,-348.474999,0.000309,30]
[405991499,1771509032359,-83.25112257,0.000309,30]
[405991501,1771509032368,-253.28437743,0.0003108,120]
[405991593,1771509038527,-327.0,0.0003108,30]
[405991594,1771509038537,-387.0,0.0003108,30]
[405991595,1771509038547,-1366.81011177,0.0003108,120]
[405991621,1771509043642,-8379.9055108,0.0003108,120]
[405991622,1771509043652,-1013.59,0.000318,30]
[405991623,1771509043661,-1013.59,0.000327,120]
[405991624,1771509043670,-181.45767904,0.00032799,2]
[405991625,1771509043680,-500.0,0.00032876,19]
[405991626,1771509043689,-500.0,0.00032876,19]
[405991627,1771509043699,-1207.5,0.00032876,19]
[405991628,1771509043708,-500.0,0.00032876,19]
[405991629,1771509043717,-1605.13,0.00032876,120]
[405991630,1771509043726,-500.0,0.00032876,19]
[405991631,1771509043735,-500.0,0.00032876,19]
[405991632,1771509043746,-570.63,0.00032876,19]
[405991633,1771509043755,-500.0,0.00032876,19]
[405991634,1771509043765,-500.0,0.00032876,19]
[405991635,1771509043775,-3257.66,0.00032876,19]
[405991636,1771509043784,-500.0,0.00032876,19]
[405991637,1771509043793,-1005.27,0.00032876,19]
[405991638,1771509043802,-551.85,0.00032876,19]
[405991639,1771509043812,-714.69,0.00032876,19]
[405991640,1771509043821,-500.0,0.00032876,19]
[405991641,1771509043831,-14564.0,0.00032876,19]
[405991642,1771509043840,-500.0,0.00032876,19]
[405991643,1771509043849,-500.0,0.00032876,19]
[405991644,1771509043858,-500.0,0.00032876,19]
[405991645,1771509043868,-500.0,0.00032876,19]
[405991646,1771509043880,-500.0,0.00032899,7]
[405991647,1771509043890,-500.0,0.00032899,7]
[405991648,1771509043899,-639.87062512,0.00032899,7]
[405991649,1771509043909,-500.0,0.00032899,7]
[405991650,1771509043919,-500.0,0.00032899,7]
[405991651,1771509043929,-303.94468593,0.00032899,7]
[405991652,1771509043939,-265.46034377,0.00032899,7]
[405991653,1771509043948,-500.0,0.00032899,7]
[405991654,1771509043957,-500.0,0.00032899,7]
[405991655,1771509043967,-435.41208305,0.00032899,7]
[405991656,1771509043976,-263.20546874,0.00032899,7]
[405991657,1771509043985,-13230.72,0.000329,14]
[405991658,1771509043994,-500.0,0.0003315,19]
[405991659,1771509044003,-500.0,0.0003315,19]
[405991660,1771509044012,-1207.5,0.0003315,19]
[405991661,1771509044024,-500.0,0.0003315,19]
[405991662,1771509044034,-500.0,0.0003315,19]
[405991663,1771509044044,-500.0,0.0003315,19]
[405991664,1771509044054,-570.63,0.0003315,19]
[405991665,1771509044064,-500.0,0.0003315,19]
[405991666,1771509044074,-486.88077204,0.0003315,19]
[405991667,1771509044084,-3257.66,0.0003315,19]
[405991668,1771509044094,-500.0,0.0003315,19]
[405991669,1771509044103,-1005.27,0.0003315,19]
[405991670,1771509044113,-551.85,0.0003315,19]
[405991671,1771509044123,-714.69,0.0003315,19]
[405991672,1771509044132,-500.0,0.0003315,19]
[405991673,1771509044142,-2540.59140817,0.0003315,19]
[405991674,1771509044321,-340.405,0.0003108,30]
[405991675,1771509044333,-309.595,0.0003108,30]
[405991676,1771509044344,-772.5,0.0003108,30]
[405991677,1771509044354,-806.3231266,0.0003315,19]
[405991695,1771509046446,-151.0,0.00030107,23]
[405991696,1771509046456,-1607.96163416,0.00031255,2]
[405991697,1771509046477,-159.70002315,0.00031255,2]
[405991698,1771509046489,-1028.67879295,0.00031255,2]
[405991705,1771509720123,-615.0,0.00015,2]
[405991706,1771509737082,-300.0,0.00015598,2]
[405991707,1771509737108,-645.0,0.00015599,2]
[405991708,1771509737136,-100.974124,0.00015599,2]
[405991709,1771509737191,-399.025876,0.00015599,2]
[405991710,1771509766501,-500.0,0.00015599,2]
[405991711,1771509766526,-160.974124,0.00015599,2]
[405991712,1771509766561,-339.025876,0.00015599,2]
[405991715,1771509795744,-207.98313864,0.00015599,2]
[405991716,1771509795779,-245.00784672,0.00015599,2]
[405991717,1771509825087,-207.98313864,0.00015599,2]
[405991726,1771510161147,-150.0,0.00015599,2]
[405991727,1771510161165,-1000.76427012,0.000156,2]
[405991728,1771510161189,-156.12449561,0.00016438,2]
[405991729,1771510161207,-300.0,0.00016885,2]
[405991730,1771510161228,-1200.0,0.00016885,2]
[405991731,1771510161250,-300.0,0.00016885,2]
[405991732,1771510161269,-583.17580175,0.00016886,2]
[405991733,1771510161288,-177.0,0.00017599,2]
[405991734,1771510161307,-150.16428519,0.00017808,2]
[405991735,1771510161328,-300.0,0.00017999,2]
[405991736,1771510161350,-3019.87866192,0.00018,2]
[405991760,1771510232501,-300.0,0.00017999,2]
[405991761,1771510232511,-300.0,0.00017999,2]
[405991762,1771510232520,-180.0,0.00017999,2]
[405991763,1771510232529,-1200.0,0.00017999,2]
[405991764,1771510232538,-5137.5928465,0.00018,2]
[405991785,1771510238591,-5429.03286365,0.00018,2]
[405991786,1771510238600,-150.0,0.00018,7]
[405991787,1771510238609,-150.0,0.00018169,2]
[405991788,1771510238619,-412.79104857,0.00018339,2]
[405991789,1771510238629,-500.0,0.00018339,2]
[405991790,1771510238639,-500.0,0.00018339,2]
[405991791,1771510238649,-500.0,0.00018339,2]
[405991792,1771510238658,-622.3258369,0.00018339,2]
[405991793,1771510238667,-322.3258369,0.00018339,2]
[405991794,1771510238677,-361.3224502,0.00018339,2]
[405991795,1771510238687,-500.0,0.00018339,2]
[405991796,1771510238696,-500.0,0.00018339,2]
[405991797,1771510238706,-13177.60420933,0.0001834,2]
[405991798,1771510238715,-158.77546916,0.00018344,2]
[405991799,1771510238724,-500.0,0.00018925,2]
[405991800,1771510238734,-420.0,0.00019639,2]
[405991801,1771510238743,-480.0,0.00019735,2]
[405991802,1771510238752,-177.0,0.00020169,2]
[405991804,1771510238762,-1000.0,0.0002023,2]
[405991805,1771510238771,-197.37,0.0002097,2]
[405991806,1771510238780,-3000.0,0.00021,2]
[405991807,1771510238790,-1900.0,0.00021,2]
[405991808,1771510238799,-3000.0,0.0002101,2]
[405991809,1771510238808,-3000.0,0.0002102,2]
[405991810,1771510238819,-3000.0,0.0002103,2]
[405991811,1771510238829,-500.0,0.00021039,2]
[405991812,1771510238838,-500.0,0.00021039,2]
[405991813,1771510238848,-3000.0,0.0002104,2]
[405991814,1771510238858,-3000.0,0.0002105,2]
[405991815,1771510238868,-3000.0,0.0002106,2]
[405991816,1771510238877,-3000.0,0.0002107,2]
[405991817,1771510238887,-5072.465394,0.0002108,2]
[405991818,1771510238897,-287.0,0.00021428,2]
[405991819,1771510238907,-158.7754691,0.00021585,2]
[405991820,1771510238917,-500.0,0.00021662,2]
[405991821,1771510238927,-500.0,0.00021662,2]
[405991822,1771510238943,-5965.05562036,0.00021663,2]
[405991823,1771510238965,-2043.0,0.00022,3]
[405991824,1771510238977,-166.20958976,0.00022169,2]
[405991825,1771510238990,-1896.99505242,0.00022633,2]
[405991826,1771510239001,-2151.092784,0.00022942,2]
[405991827,1771510239013,-920.90429325,0.0002371,2]
[405991828,1771510239023,-425.0,0.00023864,2]
[405991829,1771510239033,-2151.092784,0.00023908,2]
[405991830,1771510239043,-150.0,0.00024404,2]
[405991831,1771510239056,-150.0,0.00024404,2]
[405991832,1771510239070,-2172.0,0.00024404,2]
[405991833,1771510239082,-316.70727423,0.00024404,2]
[405991834,1771510239093,-158.7754691,0.00024827,2]
[405991835,1771510239104,-2151.092784,0.00024873,2]
[405991836,1771510239116,-150.0,0.00025626,10]
[405991837,1771510239126,-150.0,0.00025681,10]
[405991838,1771510239137,-150.0,0.00025736,10]
[405991839,1771510239148,-197.0,0.0002579,10]
[405991840,1771510239159,-2151.092784,0.00025839,2]
[405991841,1771510239170,-150.0,0.000259,10]
[405991842,1771510239180,-500.0,0.00026804,2]
[405991843,1771510239193,-500.0,0.00026804,19]
[405991844,1771510239209,-2151.092784,0.00026805,2]
[405991845,1771510239221,-878.5,0.00026845,10]
[405991846,1771510239232,-599.0,0.00026845,10]
[405991847,1771510239245,-279.27075147,0.00027497,2]
[405991848,1771510239257,-2151.092784,0.00027771,2]
[405991849,1771510239269,-943.51,0.0002797,10]
[405991850,1771510239279,-743.60641596,0.00028,3]
[405991851,1771510239291,-743.60641596,0.00028,3]
[405991852,1771510239301,-743.60641596,0.00028,3]
[405991853,1771510239312,-158.7754691,0.00028068,2]
[405991854,1771510239323,-180.47725894,0.000299,24]
[405991855,1771510239332,-1013.59,0.0003,30]
[405991856,1771510239343,-5000.0,0.00030097,120]
[405991857,1771510239354,-1013.59,0.000309,30]
[405991858,1771510239366,-3813.35052104,0.00031255,2]
[405991859,1771510239378,-158.7754691,0.00031309,2]
[405991860,1771510239390,-1013.59,0.000318,30]
[405991861,1771510239400,-1013.59,0.000327,120]
[405991862,1771510239411,-314.71104371,0.00032865,2]
[405991863,1771510239422,-500.0,0.00032865,19]
[405991864,1771510239431,-648.38,0.00032875,19]
[405991865,1771510239441,-635.33111534,0.00032876,19]
[405991866,1771510239451,-500.0,0.00032876,19]
[405991867,1771510239461,-500.0,0.00032876,19]
[405991868,1771510239470,-500.0,0.00032876,19]
[405991869,1771510239480,-500.0,0.00032876,19]
[405991870,1771510239490,-500.0,0.00032876,19]
[405991871,1771510239500,-1124.24,0.00032876,19]
[405991872,1771510239510,-500.0,0.00032876,19]
[405991873,1771510239520,-500.0,0.00032876,19]
[405991874,1771510239529,-500.0,0.00032876,19]
[405991875,1771510239539,-500.0,0.00032876,19]
[405991876,1771510239549,-500.0,0.00032876,19]
[405991877,1771510239559,-500.0,0.00032876,19]
[405991878,1771510239571,-500.0,0.00032876,19]
[405991879,1771510239581,-500.0,0.00032876,19]
[405991880,1771510239590,-500.0,0.00032876,19]
[405991881,1771510239599,-1167.72,0.00032876,7]
[405991882,1771510239608,-500.0,0.00032876,19]
[405991883,1771510239617,-520.38,0.00032876,19]
[405991884,1771510239627,-2311.21,0.00032876,19]
[405991885,1771510239635,-347.65307784,0.00032876,19]
[405991886,1771510239644,-500.0,0.00032876,19]
[405991887,1771510239654,-500.0,0.00032876,19]
[405991888,1771510239663,-500.0,0.00032876,19]
[405991889,1771510239673,-1106.87,0.00032876,19]
[405991890,1771510239682,-500.0,0.00032876,19]
[405991891,1771510239691,-1538.25,0.00032876,120]
[405991892,1771510239700,-523.07,0.00032876,19]
[405991893,1771510239709,-2986.19,0.00032876,19]
[405991894,1771510239718,-500.0,0.00032876,19]
[405991895,1771510239727,-505.87,0.00032876,19]
[405991896,1771510239736,-500.0,0.00032876,19]
[405991897,1771510239745,-921.5,0.00032876,19]
[405991898,1771510239754,-500.0,0.00032876,19]
[405991899,1771510239763,-655.14,0.00032876,19]
[405991900,1771510239772,-500.0,0.00032876,19]
[405991901,1771510239781,-500.0,0.00032876,19]
[405991902,1771510239790,-500.0,0.00032876,19]
[405991903,1771510239799,-500.0,0.00032876,19]
[405991904,1771510239808,-488.04786896,0.00032876,19]
[405991934,1771510240870,-11.95213104,0.00032876,19]
[405991936,1771510240880,-500.0,0.00032876,2]
[405991938,1771510240889,-500.0,0.00032876,19]
[405991940,1771510240899,-1019.03,0.00032876,19]
[405991942,1771510240908,-1000.0,0.00032876,120]
[405991944,1771510240918,-500.0,0.00032876,19]
[405991946,1771510240927,-500.0,0.00032876,19]
[405991948,1771510240935,-2750.31053147,0.00032876,19]
[405991950,1771510240946,-3687.01289079,0.00032876,19]
[405992134,1771510247701,-1439.55038988,0.00032876,19]
[405992199,1771511354181,-2268.3185343,0.0001699,2]
[405992200,1771511354203,-300.0,0.00016998,2]
[405992201,1771511354223,-500.0,0.00016999,2]
[405992202,1771511354244,-446.65396036,0.00016999,2]
[405992203,1771511354265,-500.0,0.00016999,2]
[405992204,1771511354288,-500.0,0.00016999,2]
[405992205,1771511354310,-500.0,0.00016999,2]
[405992206,1771511354333,-500.0,0.00016999,2]
[405992207,1771511354355,-500.0,0.00016999,2]
[405992208,1771511354376,-500.0,0.00016999,2]
[405992209,1771511354399,-500.0,0.00016999,2]
[405992210,1771511354421,-500.0,0.00016999,2]
[405992211,1771511354444,-500.0,0.00016999,2]
[405992212,1771511354465,-481.38482877,0.00016999,2]
[405992213,1771511354490,-500.0,0.00016999,2]
[405992214,1771511354513,-475.96310672,0.00016999,2]
[405992215,1771511354537,-500.0,0.00016999,2]
[405992216,1771511354562,-500.0,0.00016999,2]
[405992217,1771511354585,-500.0,0.00016999,2]
[405992218,1771511354607,-500.0,0.00016999,2]
[405992219,1771511354629,-500.0,0.00016999,2]
[405992220,1771511354651,-500.0,0.00016999,2]
[405992221,1771511354674,-500.0,0.00016999,2]
[405992222,1771511354694,-469.11707884,0.00016999,2]
[405992223,1771511354717,-500.0,0.00016999,2]
[405992224,1771511354739,-500.0,0.00016999,2]
[405992225,1771511354760,-455.11560902,0.00016999,2]
[405992226,1771511354782,-500.0,0.00016999,2]
[405992227,1771511354804,-500.0,0.00016999,2]
[405992228,1771511354827,-500.0,0.00016999,2]
[405992229,1771511354854,-500.0,0.00016999,2]
[405992230,1771511354879,-500.0,0.00016999,2]
[405992231,1771511354903,-500.0,0.00016999,2]
[405992232,1771511354928,-500.0,0.00016999,2]
[405992233,1771511354952,-500.0,0.00016999,2]
[405992234,1771511354976,-500.0,0.00016999,2]
[405992235,1771511354999,-500.0,0.00016999,2]
[405992236,1771511355024,-500.0,0.00016999,2]
[405992237,1771511355047,-499.99999999,0.00016999,2]
[405992238,1771511355069,-23125.00993163,0.00017,2]
[405992266,1771511431699,-270.25541913,0.00017,2]
[405992496,1771511437934,-742.38957152,0.00017,2]
[405992497,1771511437943,-124.9067048,0.0001789,2]
[405992506,1771511440249,-1803.52176525,0.0001789,2]
[405992507,1771511440262,-50.80825691,0.00017999,2]
[405992508,1771511440275,-249.19174309,0.00017999,2]
[405992509,1771511440284,-1200.0,0.00017999,2]
[405992510,1771511440293,-775.94296172,0.00018,2]
[405992511,1771511440305,-44855.41535474,0.00018,2]
[405992531,1771511445840,-149.73688805,0.00017445,2]
[405992532,1771511445861,-0.26311195,0.00017445,2]
[405992533,1771511445870,-609.95392029,0.000179,2]
[405992534,1771511445879,-465.39936776,0.000179,2]
[405992538,1771511446659,-604.50847283,0.000179,2]
[405992539,1771511446668,-1437.87097681,0.000179,2]
[405992540,1771511446678,-1214.4104091,0.000179,2]
[405992541,1771511446689,-1419.34076046,0.000179,2]
[405992542,1771511446698,-5690.45205794,0.00018,2]
[405992543,1771511538996,-187.25769755,0.00013699,2]
[405992544,1771512428142,-187.25769755,0.00013699,2]
[405992545,1771512428165,-150.0,0.00013699,2]
[405992546,1771512428188,-471.30162377,0.00013699,2]
[405992547,1771512555106,-143.69837623,0.00013699,2]
[405992548,1771512555126,-119.17250811,0.00015699,2]
[405992549,1771512565289,-57.82749189,0.00015699,2]
[405992550,1771512565313,-3011.62186652,0.00016436,2]
[405992551,1771512565337,-1200.0,0.00016763,2]
[405992552,1771512565358,-4858.0469744,0.00016764,2]
[405992553,1771512565380,-500.0,0.00016999,2]
[405992554,1771512565401,-500.0,0.00016999,2]
[405992555,1771512565426,-500.0,0.00017591,2]
[405992556,1771512565450,-500.0,0.00017591,2]
[405992557,1771512565474,-552.88478964,0.00017591,2]
[405992558,1771512565497,-306.12395655,0.00017591,2]
[405992559,1771512565520,-10636.3611404,0.00017592,2]
[405992560,1771512565543,-204.0,0.00017699,2]
[405992561,1771512565566,-210.11851588,0.00017989,2]
[405992562,1771512565588,-377.70784865,0.00017999,2]
[405992563,1771512565611,-500.0,0.00017999,2]
[405992564,1771512565633,-500.0,0.00017999,2]
[405992565,1771512565656,-501.46,0.00017999,2]
[405992566,1771512565677,-458.45832785,0.00017999,2]
[405992567,1771512565699,-500.0,0.00017999,2]
[405992568,1771512565723,-523.81410912,0.00017999,2]
[405992569,1771512565748,-410.9518489,0.00017999,2]
[405992570,1771512565772,-180.303,0.00017999,2]
[405992571,1771512565907,-551002.94619437,0.00018,2]
[405992572,1771512565930,-487.0,0.00018,2]
[405992573,1771512565952,-487.0,0.00018,2]
[405992574,1771512565974,-487.0,0.00018,2]
[405992575,1771512565999,-487.0,0.00018,2]
[405992576,1771512566021,-487.0,0.00018,2]
[405992577,1771512566042,-487.0,0.00018,2]
[405992578,1771512566063,-487.0,0.00018,2]
[405992579,1771512566083,-628.04,0.00018,2]
[405992580,1771512566106,-480.0,0.00018404,2]
[405992581,1771512566127,-177.498768,0.00018897,2]
[405992582,1771512566150,-15596.96716693,0.00019,2]
[405992583,1771512568120,-156.50602269,0.00018,2]
[405992607,1771512631825,-376.20246416,0.00018,2]
[405992815,1771512646011,-522.10750984,0.00018,2]
[405992819,1771512646488,-957.69019803,0.00018,2]
[405992820,1771512647510,-462.92131736,0.00018,2]
[405992821,1771512647522,-61.2596355,0.00018,2]
[405992822,1771512647531,-418.5376397,0.00018954,2]
[405992823,1771512647541,-300.0,0.00018999,2]
[405992824,1771512647551,-1161.45060984,0.00019,2]
[405992825,1771513209589,946.84,6.5e-05,2]
[405992826,1771513210714,946.84,6.5e-05,2]
[405992827,1771513211462,946.84,6.5e-05,2]
[405992828,1771513212459,946.84,6.5e-05,2]
[405992829,1771513213058,946.84,6.5e-05,2]
[405992830,1771513213688,946.84,6.5e-05,2]
[405992831,1771513214470,946.84,6.5e-05,2]
[405992832,1771513215803,946.84,6.6e-05,2]
[405992833,1771513217402,946.84,6.6e-05,2]
[405992834,1771513217966,946.84,6.6e-05,2]
[405992835,1771513218696,946.84,6.6e-05,2]
[405992836,1771513219306,946.84,6.6e-05,2]
[405992837,1771513220415,946.84,6.6e-05,2]
[405992838,1771513221655,946.84,6.6e-05,2]
[405992839,1771513222371,946.84,6.6e-05,2]
[405992840,1771513222974,946.84,6.6e-05,2]
[405992841,1771513223703,946.84,6.6e-05,2]
[405992842,1771513224309,946.84,6.6e-05,2]
[405992843,1771513225172,946.84,6.6e-05,2]
[405992844,1771513227057,946.84,6.7e-05,2]
[405992845,1771513228229,946.84,6.7e-05,2]
[405992846,1771513228850,946.84,6.7e-05,2]
[405992847,1771513229594,946.84,6.7e-05,2]
[405992848,1771513230359,946.84,6.7e-05,2]
[405992849,1771513231105,946.84,6.7e-05,2]
[405992850,1771513232220,946.84,6.7e-05,2]
[405992851,1771513232920,946.84,6.7e-05,2]
[405992852,1771513233540,946.84,6.7e-05,2]
[405992853,1771513234136,946.84,6.7e-05,2]
[405992854,1771513234872,946.84,6.7e-05,2]
[405992855,1771513235455,946.84,6.7e-05,2]
[405992856,1771513236458,946.84,6.8e-05,2]
[405992857,1771513237786,946.84,6.8e-05,2]
[405992858,1771513238519,946.84,6.8e-05,2]
[405992859,1771513239309,946.84,6.8e-05,2]
[405992860,1771513240054,946.84,6.8e-05,2]
[405992861,1771513240657,946.84,6.8e-05,2]
[405992862,1771513241960,946.84,6.8e-05,2]
[405992863,1771513242492,946.84,6.8e-05,2]
[405992864,1771513242734,946.84,6.8e-05,2]
[405992865,1771513244061,946.84,6.8e-05,2]
[405992866,1771513244803,946.84,6.8e-05,2]
[405992867,1771513245178,254.38,6.8e-05,2]
[405992868,1771513247471,946.84,6.8e-05,2]
[405992869,1771513248200,946.84,6.9e-05,2]
[405992870,1771513248940,946.84,6.9e-05,2]
[405992871,1771513249962,946.84,6.9e-05,2]
[405992872,1771513253086,946.84,6.9e-05,2]
[405992873,1771513253820,946.84,6.9e-05,2]
[405992874,1771513254800,946.84,6.9e-05,2]
[405992875,1771513255533,946.84,6.9e-05,2]
[405992876,1771513275712,-25000.0,0.0001095,2]
[405992877,1771513278537,-16435.707246,0.0001095,2]
[405992878,1771513278564,-5000.0,0.00011607,2]
[405992879,1771513278589,-3564.292754,0.00011724,2]
[405992880,1771513279994,-1435.707246,0.00011724,2]
[405992881,1771513280018,-437.86629446,0.00011779,2]
[405992882,1771513280042,-1200.0,0.00011841,2]
[405992883,1771513280068,-300.0,0.00011841,2]
[405992884,1771513280092,-5000.0,0.00011842,2]
[405992885,1771513280116,-300.0,0.00011961,2]
[405992886,1771513280139,-300.0,0.00011961,2]
[405992887,1771513280163,-300.0,0.00011961,2]
[405992888,1771513280186,-300.0,0.00011961,2]
[405992889,1771513280210,-505.45409477,0.00011961,2]
[405992890,1771513280235,-500.0,0.00011961,2]
[405992891,1771513280260,-500.0,0.00011961,2]
[405992892,1771513280286,-500.0,0.00011961,2]
[405992893,1771513280310,-500.0,0.00011961,2]
[405992894,1771513280332,-302.02646073,0.00011961,2]
[405992895,1771513280355,-500.0,0.00011961,2]
[405992896,1771513280383,-500.0,0.00011961,2]
[405992897,1771513280409,-500.0,0.00011961,2]
[405992898,1771513280436,-500.0,0.00011961,2]
[405992899,1771513280462,-500.0,0.00011961,2]
[405992900,1771513280489,-500.0,0.00011961,2]
[405992901,1771513280514,-500.0,0.00011961,2]
[405992902,1771513280540,-500.0,0.00011961,2]
[405992903,1771513280566,-500.0,0.00011961,2]
[405992904,1771513280591,-500.0,0.00011961,2]
[405992905,1771513280616,-500.0,0.00011961,2]
[405992906,1771513280642,-500.0,0.00011961,2]
[405992907,1771513280668,-500.0,0.00011961,2]
[405992908,1771513280694,-500.0,0.00011961,2]
[405992909,1771513280717,-500.0,0.00011961,2]
[405992910,1771513280743,-500.0,0.00011961,2]
[405992911,1771513280869,-500.0,0.00011961,2]
[405992912,1771513280894,-500.0,0.00011961,2]
[405992913,1771513280920,-500.0,0.00011961,2]
[405992914,1771513280944,-500.0,0.00011961,2]
[405992915,1771513280969,-391.50977102,0.00011961,2]
[405992916,1771513280993,-500.0,0.00011961,2]
[405992917,1771513281020,-500.0,0.00011961,2]
[405992918,1771513281046,-500.0,0.00011961,2]
[405992919,1771513281077,-500.0,0.00011961,2]
[405992920,1771513281103,-227.43613302,0.00011961,2]
[405992921,1771513281463,-272.56386698,0.00011961,2]
[405992922,1771513281487,-500.0,0.00011961,2]
[405992923,1771513281512,-500.0,0.00011961,2]
[405992924,1771513281536,-219.61770043,0.00011961,2]
[405992925,1771513281563,-182.84937786,0.00011961,2]
[405992926,1771513281591,-500.0,0.00011961,2]
[405992927,1771513281616,-500.0,0.00011961,2]
[405992928,1771513281645,-500.0,0.00011961,2]
[405992929,1771513281673,-500.0,0.00011961,2]
[405992930,1771513281699,-500.0,0.00011961,2]
[405992931,1771513281727,-500.0,0.00011961,2]
[405992932,1771513281755,-500.0,0.00011961,2]
[405992933,1771513281783,-500.0,0.00011961,2]
[405992934,1771513281813,-500.0,0.00011961,2]
[405992935,1771513281841,-500.0,0.00011961,2]
[405992936,1771513281867,-500.0,0.00011961,2]
[405992937,1771513281893,-500.0,0.00011961,2]
[405992938,1771513281918,-500.0,0.00011961,2]
[405992939,1771513281943,-500.0,0.00011961,2]
[405992940,1771513281969,-500.0,0.00011961,2]
[405992941,1771513281995,-500.0,0.00011961,2]
[405992942,1771513282019,-500.0,0.00011961,2]
[405992943,1771513282045,-500.0,0.00011961,2]
[405992944,1771513282071,-500.0,0.00011961,2]
[405992945,1771513282096,-500.0,0.00011961,2]
[405992946,1771513282121,-500.0,0.00011961,2]
[405992947,1771513282145,-460.00664906,0.00011961,2]
[405992948,1771513282174,-500.0,0.00011961,2]
[405992949,1771513282202,-500.0,0.00011961,2]
[405992950,1771513282226,-500.0,0.00011961,2]
[405992951,1771513282250,-500.0,0.00011961,2]
[405992952,1771513282278,-500.0,0.00011961,2]
[405992953,1771513282303,-500.0,0.00011961,2]
[405992954,1771513282329,-500.0,0.00011961,2]
[405992955,1771513282355,-500.0,0.00011961,2]
[405992956,1771513282381,-500.0,0.00011961,2]
[405992957,1771513282407,-500.0,0.00011961,2]
[405992958,1771513282435,-500.0,0.00011961,2]
[405992959,1771513282462,-500.0,0.00011961,2]
[405992960,1771513282487,-500.0,0.00011961,2]
[405992961,1771513282512,-500.0,0.00011961,2]
[405992962,1771513282537,-500.0,0.00011961,2]
[405992963,1771513282565,-500.0,0.00011961,2]
[405992964,1771513282591,-500.0,0.00011961,2]
[405992965,1771513282617,-500.0,0.00011961,2]
[405992966,1771513282643,-500.0,0.00011961,2]
[405992967,1771513282669,-500.0,0.00011961,2]
[405992968,1771513282694,-500.0,0.00011961,2]
[405992969,1771513282720,-500.0,0.00011961,2]
[405992970,1771513282747,-500.0,0.00011961,2]
[405992971,1771513282861,-500.0,0.00011961,2]
[405992972,1771513282887,-364.96240567,0.00011961,2]
[405992973,1771513300510,-415.82345294,0.00011376,2]
[405992974,1771513328602,-4584.17654706,0.00011376,2]
[405992975,1771513328632,-5000.0,0.00011491,2]
[405992976,1771513328661,-300.0,0.00011606,2]
[405992977,1771513328689,-5000.0,0.00011607,2]
[405992978,1771513328718,-135.03759433,0.00011961,2]
[405992979,1771513328747,-500.0,0.00011961,2]
[405992980,1771513328776,-500.0,0.00011961,2]
[405992981,1771513328803,-500.0,0.00011961,2]
[405992982,1771513328833,-500.0,0.00011961,2]
[405992983,1771513328861,-500.0,0.00011961,2]
[405992984,1771513328889,-500.0,0.00011961,2]
[405992985,1771513328916,-500.0,0.00011961,2]
[405992986,1771513328942,-500.0,0.00011961,2]
[405992987,1771513328970,-500.0,0.00011961,2]
[405992988,1771513328998,-604.24499931,0.00011961,2]
[405992989,1771513329030,-500.0,0.00011961,2]
[405992990,1771513329062,-500.0,0.00011961,2]
[405992991,1771513329090,-500.0,0.00011961,2]
[405992992,1771513329120,-500.0,0.00011961,2]
[405992993,1771513329148,-500.0,0.00011961,2]
[405992994,1771513329176,-500.0,0.00011961,2]